[Event "GER-ch Youth U16W 2020"]
[Site "Willingen"]
[Date "2020.10.22"]
[Round "4.2"]
[White "Brunner, Sophia"]
[Black "Heutling, Elina"]
[Result "1-0"]
[ECO "A48"]
[WhiteElo "1850"]
[BlackElo "1873"]
[Annotator "NA RC"]
[PlyCount "120"]
[EventDate "2020.10.20"]
[EventType "swiss"]
[EventRounds "7"]
[EventCountry "GER"]
[SourceTitle "playchess.com"]
[Source "ChessBase"]
[SourceQuality "1"]
[TimeControl "40/5400+30:1800+30"]

1. d4 {[%emt 0:00:00]} Nf6 {[%emt 0:00:00]} 2. Nf3 {[%emt 0:00:00]} g6 {[%emt 0:00:00]} 3. Nbd2 {[%emt 0:00:00]} Bg7 {[%emt 0:05:46]} 4. e4 {[%emt 0:00:00]} d6 {[%emt 0:00:04]} 5. Bd3 {[%emt 0:00:04]} Nbd7 {[%emt 0:04:54]} 6. O-O {[%emt 0:01:35]} e5 {[%emt 0:05:55]} 7. c3 {[%emt 0:00:50]} O-O {[%emt 0:00:50]} 8. Re1 {[%emt 0:13:44]} Re8 {[%emt 0:13:06] The old main line.} 9. a4 {[%emt 0:05:31]} exd4 {[%emt 0:04:35] [#] B07: Pirc Defence: Miscellaneous Systems.} 10. Nxd4 $146 {[%emt 0:13:17]} ({Predecessor:} 10. cxd4 c5 11. d5 Ng4 12. Bb5 a6 13. Bxd7 Bxd7 14. Nc4 Qc7 15. Bf4 Ne5 16. Bxe5 dxe5 17. a5 {1-0 (50) Ulanov,A (2453)-Alachihin,V (2283) Staraya Mayna 2018}) 10... d5 {[%emt 0:01:54]} 11. exd5 {[%emt 0:05:27]} Rxe1+ {[%emt 0:08:21]} 12. Qxe1 {[%emt 0:00:05]} Nxd5 {[%emt 0:00:11]} 13. N2f3 {[%emt 0:02:00]} Qe7 {[%emt 0:07:57]} (13... N7f6 $11) 14. Bg5 {[%emt 0:14:04]} N7f6 {[%emt 0:09:07]} 15. Qxe7 {[%emt 0:01:59]} Nxe7 {[%emt 0:00:02]} 16. Re1 {[%emt 0:00:53]} Kf8 {[%emt 0:03:22]} 17. Bc4 {[%emt 0:02:23]} h6 {[%emt 0:02:29]} 18. Bxf6 {[%emt 0:05:49]} (18. Bf4 $14) 18... Bxf6 {[%emt 0:00:04]} 19. Nb5 {[%emt 0:00:23]} Bd7 {[%emt 0:08:55]} 20. Nd2 {[%emt 0:14:16]} Rd8 {[%emt 0:07:59]} 21. Ne4 {[%emt 0:01:44]} Bxb5 {[%emt 0:01:25]} 22. Bxb5 {[%emt 0:00:10]} Kg7 {[%emt 0:10:41]} 23. f4 {[%emt 0:04:32]} c6 {[%emt 0:00:38]} 24. Bc4 {[%emt 0:00:37]} Nd5 {[%emt 0:01:00]} 25. Nxf6 {[%emt 0:03:00]} Kxf6 {[%emt 0:01:18]} 26. Rd1 {[%emt 0:00:50]} Ke7 {[%emt 0:00:42]} 27. g3 {[%emt 0:04:11]} Kd6 {[%emt 0:01:06]} 28. Kf2 {[%emt 0:01:03]} Kc5 {[%emt 0:00:31]} 29. Rd4 {[%emt 0:01:03]} a5 {[%emt 0:00:30]} 30. Bf1 {[%emt 0:02:03]} Re8 {[%emt 0:00:41]} 31. Bc4 {[%emt 0:00:37]} Ne3 {[%emt 0:00:34]} 32. Bxf7 {[%emt 0:01:17]} Ng4+ {[%emt 0:00:05]} 33. Kg2 {[%emt 0:01:13]} Ne3+ {[%emt 0:01:02]} 34. Kf3 {[%emt 0:00:27]} Re7 {[%emt 0:00:28]} 35. Bxg6 {[%emt 0:01:03]} Nc4 {[%emt 0:00:31]} 36. b3 {[%emt 0:00:10]} Nd6 {[%emt 0:00:36]} 37. Be4 {[%emt 0:01:14]} b5 {[%emt 0:00:25]} 38. axb5 {[%emt 0:00:36]} cxb5 {[%emt 0:00:37]} 39. Rd5+ {[%emt 0:00:35]} Kc6 {[%emt 0:00:12]} 40. Rd4+ {[%emt 0:00:33]} Nxe4 {[%emt 0:00:27]} 41. Rxe4 {[%emt 0:30:19]} Rd7 {[%emt 0:30:58]} 42. Ke2 {[%emt 0:00:00]} Kc5 {[%emt 0:00:00]} 43. Re5+ {[%emt 0:00:00]} Kc6 {[%emt 0:00:00]} 44. Re6+ {[%emt 0:00:00]} Kc5 {[%emt 0:00:00]} 45. Ra6 {[%emt 0:00:00]} Re7+ {[%emt 0:00:00]} 46. Kf3 {[%emt 0:00:00]} Rd7 {[%emt 0:00:00]} 47. Rxa5 {[%emt 0:00:00]} Rd3+ {[%emt 0:00:00]} 48. Ke4 {[%emt 0:00:00]} Rxc3 {[%emt 0:00:00]} 49. Ra6 {[%emt 0:00:00]} Rxb3 {[%emt 0:00:00]} 50. Rxh6 {[%emt 0:00:00]} Rb1 {[%emt 0:00:00]} 51. f5 {[%emt 0:00:00]} b4 {[%emt 0:00:00]} 52. Kd3 {[%emt 0:00:00]} Rf1 {[%emt 0:00:00]} (52... Rd1+ $142 53. Kc2 Rf1) 53. g4 {[%emt 0:00:00]} Rf3+ {[%emt 0:00:00]} 54. Ke4 {[%emt 0:01:43]} Rc3 {[%emt 0:00:00]} 55. Rh8 {[%emt 0:01:30]} Rc4+ {[%emt 0:00:00]} 56. Ke5 {[%emt 0:01:05]} Rxg4 {[%emt 0:00:00]} 57. f6 {[%emt 0:00:31]} Rg2 {[%emt 0:01:33]} 58. f7 {[%emt 0:00:52]} Re2+ {[%emt 0:00:30]} 59. Kf6 {[%emt 0:00:11]} Rf2+ {[%emt 0:00:20]} 60. Ke7 {[%emt 0:00:10]} Kd5 1-0

[Event "GER-ch Youth U16W 2020"]
[Site "Willingen"]
[Date "2020.10.22"]
[Round "4.4"]
[White "Pavlov, Liliane"]
[Black "Kalina, Lena"]
[Result "1-0"]
[ECO "A49"]
[WhiteElo "1744"]
[BlackElo "1561"]
[Annotator "NA RC"]
[PlyCount "45"]
[EventDate "2020.10.20"]
[EventType "swiss"]
[EventRounds "7"]
[EventCountry "GER"]
[SourceTitle "playchess.com"]
[Source "ChessBase"]
[SourceQuality "1"]
[TimeControl "40/5400+30:1800+30"]

1. d4 {[%emt 0:00:00]} Nf6 {[%emt 0:00:00]} 2. Nf3 {[%emt 0:00:00]} g6 {[%emt 0:00:00]} 3. g3 {[%emt 0:00:00]} Bg7 {[%emt 0:00:00]} 4. Bg2 {[%emt 0:00:00]} O-O {[%emt 0:00:02]} 5. O-O {[%emt 0:00:02]} d6 {[%emt 0:00:33]} 6. b3 {[%emt 0:00:18]} c5 {[%emt 0:01:01]} 7. Bb2 {[%emt 0:00:10]} cxd4 {[%emt 0:00:37]} 8. Nxd4 {[%emt 0:02:18]} d5 {[%emt 0:01:20]} 9. Na3 {[%emt 0:02:28]} Nc6 {[%emt 0:06:01]} 10. c4 {[%emt 0:08:53]} Nxd4 {[%emt 0:11:26]} 11. Bxd4 {[%emt 0:01:23]} Qa5 {[%emt 0:05:23]} 12. Bb2 {[%emt 0:08:16]} Rd8 {[%emt 0:12:07]} 13. cxd5 {[%emt 0:13:54]} Nxd5 {[%emt 0:01:32]} 14. Nc4 {[%emt 0:00:50]} Qc7 {[%emt 0:04:04]} 15. Bxg7 {[%emt 0:14:06]} Kxg7 {[%emt 0:07:10]} 16. Bxd5 {[%emt 0:05:26]} e6 {[%emt 0:01:55]} 17. Qd4+ {[%emt 0:01:19]} Kg8 {[%emt 0:02:06]} 18. e4 {[%emt 0:01:01]} exd5 {[%emt 0:02:26]} 19. exd5 {[%emt 0:00:10]} b5 {[%emt 0:04:08]} 20. Ne3 {[%emt 0:08:08]} Bb7 {[%emt 0:03:35]} 21. Ng4 {[%emt 0:02:30]} h5 {[%emt 0:05:35]} 22. Nf6+ {[%emt 0:00:36]} Kf8 {[%emt 0:00:26]} 23. Rfe1 {[%emt 0:00:54]} 1-0

[Event "GER-ch Youth U16W 2020"]
[Site "Willingen"]
[Date "2020.10.22"]
[Round "4.6"]
[White "Schnabel, Luise"]
[Black "Yue, Qizhou"]
[Result "1-0"]
[ECO "B47"]
[WhiteElo "1867"]
[BlackElo "1775"]
[Annotator "NA RC"]
[PlyCount "65"]
[EventDate "2020.10.20"]
[EventType "swiss"]
[EventRounds "7"]
[EventCountry "GER"]
[SourceTitle "playchess.com"]
[Source "ChessBase"]
[SourceQuality "1"]
[TimeControl "40/5400+30:1800+30"]

1. e4 {[%emt 0:00:00]} c5 {[%emt 0:00:00]} 2. Nf3 {[%emt 0:00:00]} e6 {[%emt 0:00:00]} 3. d4 {[%emt 0:00:19]} cxd4 {[%emt 0:00:00]} 4. Nxd4 {[%emt 0:00:11]} Nc6 {[%emt 0:00:14]} 5. Nc3 {[%emt 0:00:53]} Qc7 {[%emt 0:00:18]} 6. g3 {[%emt 0:01:04]} a6 {[%emt 0:01:14]} 7. Bg2 {[%emt 0:01:18]} Nf6 {[%emt 0:01:16]} 8. O-O {[%emt 0:01:24]} Be7 {[%emt 0:04:15]} 9. Re1 {[%emt 0:06:07]} O-O {[%emt 0:06:05] B47: Sicilian: Taimanov: 5 Nc3 Qc7 6 f4, 6 g3 and 6 Be2.} 10. a4 {[%emt 0:11:08] [#]} Bb4 $146 {[%emt 0:13:25]} ({Predecessor:} 10... d6 11. h3 Nxd4 12. Qxd4 e5 13. Qd3 Be6 14. Be3 Rac8 15. a5 Qc4 16. Qd2 Rfd8 17. Bb6 Re8 18. Ra4 Qc6 {1-0 (80) Nepomniachtchi,I (2717)-Grachev,B (2683) Khanty-Mansiysk 2013}) 11. Re2 {[%emt 0:14:22]} Bxc3 {[%emt 0:18:48]} 12. bxc3 {[%emt 0:00:12]} d6 {[%emt 0:01:13]} 13. Nxc6 {[%emt 0:10:18]} bxc6 {[%emt 0:00:56]} 14. a5 {[%emt 0:10:37]} Bb7 {[%emt 0:05:05]} (14... e5 $11 {keeps the balance.}) 15. f4 {[%emt 0:09:56]} Rfd8 {[%emt 0:04:29]} 16. Qe1 {[%emt 0:05:27]} c5 {[%emt 0:04:02]} 17. c4 {[%emt 0:07:10]} Rab8 {[%emt 0:02:50]} 18. Bd2 {[%emt 0:04:26]} Bc6 {[%emt 0:04:31]} 19. Bc3 {[%emt 0:00:32]} Nd7 {[%emt 0:07:32]} 20. Rd1 {[%emt 0:01:23]} e5 {[%emt 0:00:49]} (20... Nf8 $14) 21. Red2 {[%emt 0:02:47]} Nf6 {[%emt 0:09:21]} 22. fxe5 {[%emt 0:01:34]} dxe5 {[%emt 0:00:36]} 23. Bxe5 {[%emt 0:01:02]} Qxe5 {[%emt 0:01:10]} 24. Rxd8+ {[%emt 0:00:09]} Rxd8 {[%emt 0:00:08]} 25. Rxd8+ {[%emt 0:00:05]} Be8 {[%emt 0:00:41]} 26. h3 {[%emt 0:05:22]} g6 {[%emt 0:00:39]} 27. Kh2 {[%emt 0:01:00]} Kg7 {[%emt 0:02:59]} 28. Qe3 Qc7 29. Ra8 {[%emt 0:01:43]} Bc6 {[%emt 0:01:50]} 30. Qxc5 {[%emt 0:00:52]} Nd7 {[%emt 0:00:19]} 31. Qd4+ {[%emt 0:00:50]} f6 {[%emt 0:00:52] [#]} 32. Ra7 $18 {[%emt 0:00:55]} Qc8 {[%emt 0:00:46]} 33. Qd6 {[%emt 0:00:24]} 1-0

[Event "GER-ch Youth U16W 2020"]
[Site "Willingen"]
[Date "2020.10.22"]
[Round "4.7"]
[White "Doll, Rebecca"]
[Black "Schneider, Katharina"]
[Result "1-0"]
[ECO "C50"]
[WhiteElo "1808"]
[BlackElo "1779"]
[Annotator "NA RC"]
[PlyCount "106"]
[EventDate "2020.10.20"]
[EventType "swiss"]
[EventRounds "7"]
[EventCountry "GER"]
[SourceTitle "playchess.com"]
[Source "ChessBase"]
[SourceQuality "1"]
[TimeControl "40/5400+30:1800+30"]

1. e4 {[%emt 0:00:00]} e5 {[%emt 0:00:00]} 2. Nf3 {[%emt 0:00:00]} Nc6 {[%emt 0:00:00]} 3. Bc4 {[%emt 0:00:00]} Bc5 {[%emt 0:00:00]} 4. O-O {[%emt 0:00:00]} d6 {[%emt 0:01:46]} 5. d3 {[%emt 0:00:18]} Nf6 {[%emt 0:00:59]} 6. c3 {[%emt 0:00:50]} a6 {[%emt 0:00:14]} 7. Nbd2 {[%emt 0:00:38] 7.a4 is becoming the main line.} Ba7 {[%emt 0:00:14]} 8. Bb3 {[%emt 0:00:23]} h6 {[%emt 0:00:22] C54: Giuoco Piano: 4 c3 Nf6, main lines with 5 d4 and 5 d3.} 9. Re1 {[%emt 0:00:46]} g5 {[%emt 0:00:23]} 10. Nf1 {[%emt 0:04:47]} g4 {[%emt 0:00:55]} 11. N3d2 {[%emt 0:01:02]} h5 {[%emt 0:00:13]} 12. Nc4 {[%emt 0:08:29]} h4 {[%emt 0:00:19]} 13. Be3 {[%emt 0:09:09]} g3 {[%emt 0:27:09]} 14. Bxa7 {[%emt 0:12:39] [#]} ({Don't do} 14. hxg3 $6 hxg3 15. Bxa7 (15. Nxg3 Ng4 $14) 15... Rxa7 $14) ({Better is} 14. fxg3 Nh5 15. Bxa7 Rxa7 16. g4) 14... Nxa7 $146 {[%emt 0:00:59]} ({Predecessor:} 14... gxh2+ $1 $14 15. Nxh2 Rxa7 (15... Nxa7 16. d4 Nc6 17. dxe5 dxe5 18. Qxd8+ Kxd8 19. Rad1+ Ke7 20. Ne3 Ne8 {1-0 (57) Adams,M (2701)-McShane,L (2677) London 2019})) 15. Nce3 {[%emt 0:02:17]} ({Resist} 15. hxg3 $6 hxg3 16. Nxg3 Ng4 $14) (15. fxg3 $16 Bg4 16. Qd2) 15... gxf2+ {[%emt 0:07:32]} 16. Kxf2 {[%emt 0:00:08]} Rg8 {[%emt 0:01:47]} (16... Be6 $11 {remains equal.}) 17. Qf3 {[%emt 0:03:43]} Bg4 {[%emt 0:01:06]} 18. Nxg4 {[%emt 0:00:46]} Rxg4 {[%emt 0:00:59]} 19. Kg1 {[%emt 0:02:22]} Rf4 {[%emt 0:01:03]} 20. Qe2 {[%emt 0:01:56]} Qd7 {[%emt 0:09:20]} 21. Ne3 {[%emt 0:01:41]} O-O-O {[%emt 0:01:16] [#]} 22. Rf1 $1 {[%emt 0:01:32]} Rg8 {[%emt 0:00:44]} (22... Kb8 $16 23. Rxf4 exf4) 23. Nf5 {[%emt 0:04:57]} d5 {[%emt 0:09:53]} 24. Rxf4 {[%emt 0:03:25]} exf4 {[%emt 0:00:06]} 25. Nxh4 {[%emt 0:02:20]} dxe4 {[%emt 0:07:35]} 26. dxe4 {[%emt 0:00:46]} Nc6 {[%emt 0:04:40]} 27. Nf3 {[%emt 0:04:01]} Ng4 {[%emt 0:05:12]} 28. Kh1 {[%emt 0:08:28]} Nce5 {[%emt 0:04:55]} 29. Nxe5 {[%emt 0:02:07]} Nxe5 {[%emt 0:00:07]} 30. Rd1 {[%emt 0:03:05]} Qe7 {[%emt 0:02:56]} 31. Qh5 {[%emt 0:05:55]} Qf6 {[%emt 0:02:25]} 32. Qf5+ {[%emt 0:05:35]} Qxf5 {[%emt 0:00:09]} 33. exf5 {[%emt 0:00:05]} Rg5 {[%emt 0:02:41]} 34. Bc2 {[%emt 0:07:58]} Ng4 {[%emt 0:02:20]} 35. Rd2 {[%emt 0:01:02]} Ne3 $16 {[%emt 0:01:11]} 36. Be4 {[%emt 0:01:13]} c6 {[%emt 0:03:38]} 37. Kg1 {[%emt 0:01:03]} Nxf5 {[%emt 0:01:25]} 38. Bxf5+ {[%emt 0:00:14]} Rxf5 {[%emt 0:00:08]} 39. Kf2 {[%emt 0:00:11]} Kc7 {[%emt 0:00:30]} 40. Kf3 {[%emt 0:00:24]} f6 {[%emt 0:01:15]} 41. Kg4 {[%emt 0:30:33]} Ra5 {[%emt 0:30:24]} 42. a3 {[%emt 0:00:16]} Ra4 {[%emt 0:00:29]} 43. Rf2 {[%emt 0:01:32]} Re4 {[%emt 0:01:20]} 44. Kf5 {[%emt 0:02:11]} Re5+ {[%emt 0:00:00]} 45. Kxf6 {[%emt 0:00:00]} Rh5 {[%emt 0:00:00]} 46. h3 {[%emt 0:00:00]} Kd6 {[%emt 0:00:00]} 47. Rxf4 {[%emt 0:00:00]} c5 {[%emt 0:00:00]} 48. h4 {[%emt 0:00:00]} b5 {[%emt 0:00:00]} 49. g3 {[%emt 0:00:00]} a5 {[%emt 0:00:00]} 50. Rf5 {[%emt 0:00:00]} Rh6+ {[%emt 0:00:00]} 51. Kg7 {[%emt 0:00:00]} Re6 {[%emt 0:00:00]} 52. Rf6 {[%emt 0:00:00]} Rxf6 {[%emt 0:00:00]} 53. Kxf6 {[%emt 0:00:00]} Kd5 1-0

[Event "GER-ch Youth U16W 2020"]
[Site "Willingen"]
[Date "2020.10.22"]
[Round "4.8"]
[White "Cheredzhiyska, Iva"]
[Black "Basovskiy, Jana"]
[Result "0-1"]
[ECO "B40"]
[WhiteElo "1674"]
[BlackElo "1760"]
[Annotator "NA RC"]
[PlyCount "58"]
[EventDate "2020.10.20"]
[EventType "swiss"]
[EventRounds "7"]
[EventCountry "GER"]
[SourceTitle "playchess.com"]
[Source "ChessBase"]
[SourceQuality "1"]
[TimeControl "40/5400+30:1800+30"]

1. e4 {[%emt 0:00:00]} c5 {[%emt 0:00:00]} 2. Nf3 {[%emt 0:00:00]} e6 {[%emt 0:00:00]} 3. c3 {[%emt 0:00:15]} Nf6 {[%emt 0:00:00]} 4. e5 {[%emt 0:00:42]} Nd5 {[%emt 0:00:06]} 5. d4 {[%emt 0:00:37]} cxd4 {[%emt 0:00:28]} 6. cxd4 {[%emt 0:01:12]} Nc6 {[%emt 0:01:06]} 7. Bc4 {[%emt 0:02:52]} d6 {[%emt 0:03:26]} 8. O-O {[%emt 0:04:37]} Be7 {[%emt 0:09:08]} 9. a3 {[%emt 0:00:55]} O-O {[%emt 0:05:36]} 10. Qc2 {[%emt 0:06:56]} Qb6 {[%emt 0:18:26]} 11. Rd1 {[%emt 0:18:09]} Rd8 {[%emt 0:04:02]} 12. Bd3 {[%emt 0:04:23]} g6 {[%emt 0:05:44]} 13. Nc3 {[%emt 0:07:48]} Nxc3 {[%emt 0:14:52]} 14. Qxc3 {[%emt 0:01:27]} dxe5 {[%emt 0:00:13]} 15. dxe5 {[%emt 0:02:14]} Bc5 {[%emt 0:00:20]} 16. Rf1 {[%emt 0:02:38]} Nd4 {[%emt 0:05:37]} 17. Bc4 {[%emt 0:02:02]} Qc6 {[%emt 0:07:05]} 18. Ng5 {[%emt 0:09:55]} b5 {[%emt 0:05:28]} 19. Qh3 {[%emt 0:04:37]} h5 {[%emt 0:00:08]} 20. Bd3 {[%emt 0:10:41]} Bb7 {[%emt 0:06:46]} 21. Be4 {[%emt 0:04:07]} Qc7 {[%emt 0:00:44]} 22. Bxb7 {[%emt 0:04:46]} Qxb7 {[%emt 0:00:01]} 23. b4 {[%emt 0:01:23]} Be7 {[%emt 0:01:24]} 24. Be3 {[%emt 0:01:05]} Nf5 {[%emt 0:01:08]} 25. Bf4 {[%emt 0:00:51]} Rd4 {[%emt 0:01:03]} 26. Bc1 {[%emt 0:01:26]} Rg4 {[%emt 0:05:46]} 27. Nf3 {[%emt 0:00:04]} Rd8 {[%emt 0:00:59]} 28. Bb2 {[%emt 0:00:54]} Rd3 {[%emt 0:00:27]} 29. Kh1 {[%emt 0:02:12]} Rh4 {[%emt 0:00:29]} 0-1

[Event "GER-ch Youth U16W 2020"]
[Site "Willingen"]
[Date "2020.10.22"]
[Round "4.9"]
[White "Jacoby, Angelina"]
[Black "Klahold, Rona"]
[Result "1/2-1/2"]
[ECO "A20"]
[WhiteElo "1630"]
[BlackElo "1551"]
[Annotator "NA RC"]
[PlyCount "84"]
[EventDate "2020.10.20"]
[EventType "swiss"]
[EventRounds "7"]
[EventCountry "GER"]
[SourceTitle "playchess.com"]
[Source "ChessBase"]
[SourceQuality "1"]
[TimeControl "40/5400+30:1800+30"]

1. c4 {[%emt 0:00:00]} e5 {[%emt 0:00:00]} 2. g3 {[%emt 0:00:00]} Nc6 {[%emt 0:00:23]} 3. Bg2 {[%emt 0:00:42]} Bc5 {[%emt 0:01:32]} 4. Nc3 {[%emt 0:01:01]} f5 {[%emt 0:02:22]} 5. e3 {[%emt 0:03:02]} Nf6 {[%emt 0:02:02]} 6. Nge2 {[%emt 0:02:26]} d6 {[%emt 0:10:09]} 7. d4 {[%emt 0:03:15]} Bb6 {[%emt 0:04:45]} 8. b3 {[%emt 0:14:50]} O-O {[%emt 0:06:11]} 9. O-O {[%emt 0:01:30]} Qe8 {[%emt 0:04:30]} 10. Ba3 {[%emt 0:14:15]} e4 {[%emt 0:09:43]} 11. Rb1 {[%emt 0:05:32]} a6 {[%emt 0:03:28]} 12. Nf4 {[%emt 0:05:41]} Ne7 {[%emt 0:06:38]} 13. b4 {[%emt 0:05:15]} g5 {[%emt 0:03:06]} 14. Nfe2 {[%emt 0:04:50]} d5 {[%emt 0:08:13]} 15. c5 {[%emt 0:19:19]} Ba7 {[%emt 0:00:55]} 16. h3 {[%emt 0:04:28]} c6 {[%emt 0:04:50]} 17. Bc1 {[%emt 0:01:45]} Qh5 {[%emt 0:05:50]} 18. Bd2 {[%emt 0:03:18]} f4 {[%emt 0:03:35]} 19. exf4 {[%emt 0:00:06]} Bxh3 {[%emt 0:00:34]} 20. f3 {[%emt 0:01:38]} Bxg2 {[%emt 0:04:36]} 21. Kxg2 {[%emt 0:00:05]} exf3+ {[%emt 0:00:50]} 22. Rxf3 {[%emt 0:00:06]} Ng4 {[%emt 0:00:41]} 23. Qh1 {[%emt 0:00:37]} Qxh1+ {[%emt 0:01:25]} 24. Rxh1 {[%emt 0:00:50]} gxf4 {[%emt 0:01:10]} 25. Rxf4 {[%emt 0:00:39]} Rxf4 {[%emt 0:00:25]} 26. Bxf4 {[%emt 0:00:07]} Nf5 {[%emt 0:02:16]} 27. Kf3 {[%emt 0:00:59]} Nf6 {[%emt 0:00:31]} 28. Be5 {[%emt 0:00:40]} Rf8 {[%emt 0:01:40]} 29. Rd1 {[%emt 0:02:28]} Nd7 {[%emt 0:01:41]} 30. Bf4 {[%emt 0:00:20]} Bb8 {[%emt 0:01:38]} 31. Rd3 {[%emt 0:00:52]} Kg7 {[%emt 0:03:32]} 32. Kg2 {[%emt 0:00:23]} Re8 {[%emt 0:01:59]} 33. Kf3 {[%emt 0:01:16]} Kf6 {[%emt 0:01:00]} 34. Bxb8 {[%emt 0:00:17]} Nxb8 {[%emt 0:00:33]} 35. Nd1 {[%emt 0:00:22]} Nd7 {[%emt 0:00:23]} 36. Ne3 {[%emt 0:00:15]} Nxe3 {[%emt 0:00:46]} 37. Rxe3 {[%emt 0:00:04]} Rxe3+ {[%emt 0:00:04]} 38. Kxe3 {[%emt 0:00:06]} Kg5 {[%emt 0:00:12]} 39. Kf3 {[%emt 0:00:51]} h5 {[%emt 0:02:01]} 40. Nc1 {[%emt 0:02:46]} b6 {[%emt 0:02:12]} 41. Nb3 {[%emt 0:11:03]} bxc5 {[%emt 0:06:39]} 42. bxc5 {[%emt 0:00:56]} Kf5 {[%emt 0:00:31]} 1/2-1/2

[Event "GER-ch Youth U16W 2020"]
[Site "Willingen"]
[Date "2020.10.22"]
[Round "4.10"]
[White "Dohon, Maria-Johanna"]
[Black "Schwegler, Jelena"]
[Result "1/2-1/2"]
[ECO "A49"]
[WhiteElo "1536"]
[BlackElo "1539"]
[Annotator "NA RC"]
[PlyCount "86"]
[EventDate "2020.10.20"]
[EventType "swiss"]
[EventRounds "7"]
[EventCountry "GER"]
[SourceTitle "playchess.com"]
[Source "ChessBase"]
[SourceQuality "1"]
[TimeControl "40/5400+30:1800+30"]

1. d4 {[%emt 0:00:00]} Nf6 {[%emt 0:00:00]} 2. Nf3 {[%emt 0:00:00]} g6 {[%emt 0:00:00]} 3. g3 {[%emt 0:00:00]} Bg7 {[%emt 0:00:00]} 4. Bg2 {[%emt 0:00:00]} O-O {[%emt 0:00:01]} 5. O-O {[%emt 0:00:00]} d6 {[%emt 0:00:24]} 6. c4 {[%emt 0:00:14]} c5 {[%emt 0:01:54]} 7. d5 {[%emt 0:00:56]} Nbd7 {[%emt 0:06:58]} 8. Nc3 {[%emt 0:04:30]} Ng4 {[%emt 0:05:58]} 9. Qc2 {[%emt 0:04:19]} Nde5 {[%emt 0:03:01]} 10. Nd2 {[%emt 0:04:36]} a6 {[%emt 0:02:58]} 11. h3 {[%emt 0:01:01]} Nf6 {[%emt 0:01:11]} 12. a4 {[%emt 0:01:58]} b6 {[%emt 0:06:59]} 13. e4 {[%emt 0:04:06]} Bb7 {[%emt 0:04:17]} 14. f4 {[%emt 0:03:03]} Ned7 {[%emt 0:00:34]} 15. Nf3 {[%emt 0:02:33]} Qc7 {[%emt 0:01:26]} 16. Be3 {[%emt 0:01:56]} e6 {[%emt 0:01:52]} 17. Bf2 {[%emt 0:04:40]} exd5 {[%emt 0:01:53]} 18. cxd5 {[%emt 0:03:09]} Rfe8 {[%emt 0:01:07]} 19. Rfe1 {[%emt 0:01:18]} Kh8 {[%emt 0:02:05]} 20. Rad1 {[%emt 0:02:58]} Re7 {[%emt 0:00:35]} 21. Re2 {[%emt 0:04:33]} Rae8 {[%emt 0:00:38]} 22. Nh2 {[%emt 0:09:30]} Qb8 {[%emt 0:03:14]} 23. Bf3 {[%emt 0:02:53]} Ba8 {[%emt 0:00:52]} 24. Be1 {[%emt 0:02:09]} b5 {[%emt 0:00:50]} 25. axb5 {[%emt 0:02:00]} axb5 {[%emt 0:00:07]} 26. Ra1 {[%emt 0:04:21]} b4 {[%emt 0:00:40]} 27. Nd1 {[%emt 0:00:29]} Nb6 {[%emt 0:00:37]} 28. Ra6 {[%emt 0:03:07]} Ra7 {[%emt 0:04:30]} 29. Rxa7 {[%emt 0:00:48]} Qxa7 {[%emt 0:00:07]} 30. b3 {[%emt 0:02:18]} Nbd7 {[%emt 0:04:01]} 31. Nf2 {[%emt 0:01:10]} Bb7 {[%emt 0:00:58]} 32. Qa2 {[%emt 0:02:29]} Qb6 {[%emt 0:00:44]} 33. Qb1 {[%emt 0:01:09]} Ra8 {[%emt 0:00:35]} 34. Ra2 {[%emt 0:00:24]} Rxa2 {[%emt 0:02:45]} 35. Qxa2 {[%emt 0:00:07]} Qa6 {[%emt 0:00:05]} 36. Qxa6 {[%emt 0:00:15]} Bxa6 {[%emt 0:00:02]} 37. Bd1 {[%emt 0:02:14]} Ne8 {[%emt 0:00:47]} 38. Bc2 {[%emt 0:01:51]} Nc7 {[%emt 0:05:31]} 39. Nfg4 {[%emt 0:02:44]} h5 {[%emt 0:00:52]} 40. Ne3 {[%emt 0:00:53]} Bd4 {[%emt 0:02:10]} 41. Kf2 {[%emt 0:31:02]} Kg7 {[%emt 0:30:52]} 42. Bd2 {[%emt 0:01:05]} f6 {[%emt 0:02:59]} 43. Nf3 {[%emt 0:01:48]} Nb5 {[%emt 0:04:04]} 1/2-1/2

[Event "GER-ch Youth U16W 2020"]
[Site "Willingen"]
[Date "2020.10.23"]
[Round "5.1"]
[White "Reuter, Elisa"]
[Black "Brunner, Sophia"]
[Result "1/2-1/2"]
[ECO "A38"]
[WhiteElo "1860"]
[BlackElo "1850"]
[Annotator "NA RC"]
[PlyCount "72"]
[EventDate "2020.10.20"]
[EventType "swiss"]
[EventRounds "7"]
[EventCountry "GER"]
[SourceTitle "playchess.com"]
[Source "ChessBase"]
[SourceQuality "1"]
[TimeControl "40/5400+30:1800+30"]

{[%evp 15,63,3,25,28,58,27,35,36,63,55,73,68,72,33,54,18,101,74,113,114,123,50,90,74,32767,29,60,59,32767,32767,32767,32767,32767,32767,73,56,66,33,32767,54,63,32767,32767,32767,32767,32767,32767,32767,53,39]} 1. c4 {[%emt 0:00:00]} c5 {[%emt 0:04:37]} 2. Nc3 {[%emt 0:00:00]} Nc6 {[%emt 0:00:06]} 3. g3 {[%emt 0:00:00]} g6 {[%emt 0:00:26]} 4. Bg2 {[%emt 0:00:02]} Bg7 {[%emt 0:00:13]} 5. Nf3 {[%emt 0:00:06]} Nf6 {[%emt 0:00:46]} 6. O-O {[%emt 0:00:25]} O-O {[%emt 0:00:35]} 7. d3 {[%emt 0:01:30]} d6 {[%emt 0:05:50]} 8. Rb1 {[%emt 0:02:09]} Nd7 {[%emt 0:20:17] A38: Symmetrical English vs ...g6: 4 Bg2 Bg7 5 Nf3 Nf6.} 9. Bd2 {[%emt 0:02:40]} Nde5 {[%emt 0:01:27]} 10. Ne1 {[%emt 0:01:53]} f5 {[%emt 0:10:04]} 11. a3 {[%emt 0:03:04] [#]} Nd7 $146 {[%emt 0:08:01]} ({Predecessor:} 11... e6 12. Nc2 g5 13. Qc1 Nf7 14. b4 cxb4 15. axb4 h5 16. b5 Nce5 17. f4 gxf4 18. gxf4 Ng6 19. Bf3 Nxf4 20. Bxf4 Bxc3 21. Bxh5 Qh4 22. Bf3 {½-½ (22) Yordanova,S (2113)-Yaramis,H (1955) Skopje 2017}) 12. b4 {[%emt 0:02:13]} e5 {[%emt 0:00:53]} 13. Nc2 Nb6 {[%emt 0:15:11]} 14. b5 {[%emt 0:18:37]} Nd4 {[%emt 0:01:00]} 15. Nxd4 {[%emt 0:00:54]} exd4 {[%emt 0:04:22]} (15... cxd4 $14 16. Nd5 Be6) 16. Nd5 {[%emt 0:01:36]} Nxd5 {[%emt 0:04:58]} 17. Bxd5+ {[%emt 0:00:06]} Kh8 {[%emt 0:00:01]} 18. Qc1 {[%emt 0:03:23]} ({White should play} 18. e3 $16) 18... Qe7 {[%emt 0:03:10]} 19. Re1 {[%emt 0:00:50]} Be6 {[%emt 0:02:10]} 20. e4 {[%emt 0:16:24]} Bxd5 {[%emt 0:00:46]} 21. exd5 {[%emt 0:00:12]} Qd7 {[%emt 0:06:05]} 22. Bf4 {[%emt 0:01:22]} Rfe8 {[%emt 0:00:56]} 23. Qd2 {[%emt 0:00:45]} Be5 {[%emt 0:03:15]} 24. Bg5 {[%emt 0:02:39]} Kg7 {[%emt 0:02:14]} 25. Kf1 {[%emt 0:05:10]} Kf7 {[%emt 0:02:30]} 26. Re2 {[%emt 0:03:03]} Bg7 {[%emt 0:01:10]} 27. Rbe1 {[%emt 0:01:31]} Rxe2 {[%emt 0:00:23]} 28. Qxe2 {[%emt 0:00:54]} Re8 {[%emt 0:00:47]} 29. Qxe8+ {[%emt 0:00:39]} Qxe8 {[%emt 0:00:01]} 30. Rxe8 {[%emt 0:00:07]} Kxe8 {[%emt 0:00:02]} 31. Ke2 {[%emt 0:00:13]} Kd7 {[%emt 0:00:58]} 32. h4 $14 {[%emt 0:00:24]} h5 {[%emt 0:01:36]} 33. a4 {[%emt 0:00:33]} Be5 {[%emt 0:00:44]} 34. f4 {[%emt 0:02:17]} Bg7 {[%emt 0:00:07]} 35. Kd2 {[%emt 0:00:05]} Bf8 {[%emt 0:00:45]} 36. a5 {[%emt 0:00:21]} a6 {[%emt 0:00:12]} 1/2-1/2